bitfinex/quotes_SOLUSD_20240809
["timestamp","ask_amount","ask_price","bid_price","bid_amount"]
[1723169422693,26.0,160.9,160.86,45.72112312]
[1723169423013,32.2147,160.91,160.86,60.5412]
[1723169423314,26.0,160.88,160.86,45.0]
[1723169423700,26.0,160.87,160.86,45.0]
[1723169423887,32.2161,160.87,160.82,15.5446]
[1723169424086,1.55393654,160.92,160.83,45.0]
[1723169424087,26.0,160.85,160.83,45.0]
[1723169424519,32.217,160.85,160.83,45.0]
[1723169424897,26.0,160.85,160.83,45.0]
[1723169425100,26.0,160.85,160.82,45.0]
[1723169425931,32.2169,160.85,160.81,45.0]
[1723169426093,26.0,160.85,160.8,51.2188]
[1723169427588,26.0,160.85,160.81,6.2184]
[1723169427823,26.0,160.85,160.82,45.0]
[1723169430520,32.2162,160.87,160.82,45.0]
[1723169430913,19.37670258,160.92,160.82,45.0]
[1723169431096,26.0,160.92,160.85,26.0]
[1723169431301,26.0,160.92,160.86,45.72051842]
[1723169431504,6.49619541,160.93,160.88,6.2154]
[1723169431733,26.0,160.94,160.89,45.0]
[1723169432015,6.2156,160.89,160.83,26.0]
[1723169432321,6.2156,160.89,160.84,45.0]
[1723169432919,15.5346,160.94,160.84,45.0]
[1723169432920,26.0,160.88,160.84,45.0]
[1723169433423,6.2163,160.87,160.84,45.0]
[1723169433919,6.2163,160.87,160.83,45.0]
[1723169434129,26.0,160.86,160.81,15.5457]
[1723169434633,26.0,160.86,160.81,21.7639]
[1723169434924,26.0,160.86,160.82,6.218]
[1723169435518,26.0,160.86,160.81,21.7641]
[1723169435739,26.0,160.86,160.82,45.0]
[1723169436026,6.2169,160.85,160.82,45.0]
[1723169436394,32.2174,160.84,160.78,15.2683]
[1723169436593,32.2174,160.84,160.77,41.5492]
[1723169436822,32.2174,160.84,160.78,6.2195]
[1723169437829,32.2174,160.84,160.79,45.0]
[1723169438202,32.2178,160.83,160.79,45.0]
[1723169438824,26.0,160.81,160.75,6.2204]
[1723169439128,26.0,160.81,160.76,6.2202]
[1723169439338,26.0,160.81,160.74,21.669]
[1723169439504,26.0,160.81,160.75,6.2206]
[1723169440113,32.2185,160.81,160.75,6.2206]
[1723169440511,32.2185,160.81,160.76,6.2203]
[1723169440719,26.0,160.81,160.75,26.0]
[1723169440907,26.0,160.83,160.75,26.0]
[1723169441108,26.0,160.83,160.78,15.5491]
[1723169441446,26.0,160.83,160.79,45.0]
[1723169441730,26.0,160.84,160.8,6.2185]
[1723169441913,26.0,160.84,160.81,45.0]
[1723169443814,26.0,160.84,160.8,45.0]
[1723169444327,6.2193,160.79,160.74,15.5528]
[1723169444632,6.2193,160.79,160.74,21.7738]
[1723169445316,32.2189,160.8,160.74,21.7738]
[1723169445824,32.2189,160.8,160.76,6.2201]
[1723169445825,26.0,160.8,160.76,6.2201]
[1723169446130,26.0,160.8,160.77,45.0]
[1723169446515,26.0,160.8,160.76,45.0]
[1723169447227,26.0,160.8,160.75,6.2208]
[1723169447531,32.2189,160.8,160.75,6.2208]
[1723169447853,26.0,160.8,160.75,6.2208]
[1723169448919,26.0,160.8,160.76,45.0]
[1723169449732,26.0,160.8,160.76,42.84975405]
[1723169450033,2.43175689,160.85,160.77,0.7235449]
[1723169450349,26.0,160.82,160.78,6.2196]
[1723169450507,26.0,160.82,160.77,6.22]
[1723169451024,32.2181,160.82,160.76,64.62035405]
[1723169451626,32.2181,160.82,160.77,6.2199]
[1723169451830,32.2181,160.82,160.78,45.0]
[1723169452130,26.0,160.82,160.78,51.2196]
[1723169452924,26.0,160.82,160.78,45.0]
[1723169454943,26.0,160.84,160.78,45.0]
[1723169455112,26.0,160.84,160.79,6.2189]
[1723169455312,26.0,160.84,160.8,45.0]
[1723169455841,32.2175,160.84,160.8,45.0]
[1723169457242,6.2178,160.83,160.8,45.0]
[1723169457610,6.2178,160.83,160.79,45.0]
[1723169457811,32.2173,160.84,160.79,45.0]
[1723169460375,6.6116,160.87,160.72,15.5195]
[1723169460376,26.0,160.81,160.72,15.5195]
[1723169460528,6.6116,160.87,160.72,15.5195]
[1723169460723,32.2189,160.8,160.74,6.2211]
[1723169461052,32.2189,160.8,160.74,0.72325188]
[1723169461552,6.2193,160.79,160.73,15.5531]
[1723169461848,6.2193,160.79,160.73,21.7743]
[1723169462045,26.0,160.8,160.73,41.5531]
[1723169462343,26.0,160.8,160.77,6.22]
[1723169462845,26.0,160.8,160.76,6.2204]
[1723169463160,26.0,160.8,160.77,45.0]
[1723169463454,32.2189,160.8,160.77,45.0]
[1723169463614,32.2189,160.8,160.76,45.0]
[1723169464221,26.0,160.8,160.76,45.0]
[1723169464422,26.0,160.8,160.77,0.72321347]
[1723169464621,26.0,160.8,160.76,51.2203]
[1723169465519,32.2189,160.8,160.76,45.0]
[1723169467048,26.0,160.78,160.76,45.0]
[1723169468321,26.0,160.78,160.73,6.2215]
[1723169468932,26.0,160.79,160.74,0.72382013]
[1723169469440,26.0,160.79,160.75,15.552]
[1723169469746,26.0,160.78,160.76,45.0]
[1723169469926,26.0,160.78,160.75,45.0]
[1723169470251,26.0,160.78,160.74,45.0]
[1723169471445,26.0,160.77,160.74,45.0]
[1723169472944,26.0,160.78,160.74,45.0]
[1723169473953,17.85,160.77,160.74,45.0]
[1723169474157,12.8075,160.8,160.74,51.2211]
[1723169474460,17.85,160.78,160.74,51.2211]
[1723169474960,17.85,160.77,160.74,51.2211]
[1723169475462,17.85,160.78,160.74,51.2211]
[1723169475669,17.85,160.8,160.76,24.0704]
[1723169475842,17.85,160.8,160.77,45.72303143]
[1723169476868,17.85,160.8,160.77,45.0]
[1723169477342,17.85,160.8,160.76,45.0]
[1723169477769,17.85,160.79,160.76,45.0]
[1723169478560,17.85,160.77,160.76,45.0]
[1723169478771,17.85,160.77,160.75,45.0]
[1723169480256,17.85,160.78,160.75,45.0]
[1723169481249,17.85,160.77,160.75,45.0]
[1723169483145,17.85,160.76,160.75,45.0]
[1723169484643,17.85,160.76,160.74,45.0]
[1723169484947,17.85,160.77,160.74,45.0]
[1723169485571,15.5451,160.83,160.74,62.85]
[1723169485763,17.85,160.78,160.74,62.85]
[1723169485976,12.97982559,160.84,160.77,17.85]
[1723169486179,17.85,160.82,160.78,24.79205217]
[1723169486483,17.85,160.83,160.79,45.0]
[1723169486655,17.85,160.83,160.79,51.2192]
[1723169487171,17.85,160.82,160.79,51.2192]
[1723169487579,17.85,160.8,160.79,45.0]
[1723169488159,24.0689,160.8,160.79,45.0]
[1723169488967,6.2193,160.79,160.74,39.6234]
[1723169489166,17.85,160.8,160.75,51.2206]
[1723169489461,17.85,160.79,160.75,51.2206]
[1723169489773,26.03,160.8,160.75,51.2206]
[1723169490988,34.65252951,160.86,160.72,6.2219]
[1723169490989,26.03,160.77,160.72,6.2219]
[1723169492965,26.03,160.75,160.71,15.6995]
[1723169493166,6.2212,160.74,160.71,15.6995]
[1723169493369,6.2212,160.74,160.7,15.556]
[1723169493370,26.03,160.74,160.7,15.556]
[1723169494589,26.03,160.74,160.7,21.7786]
[1723169494788,26.03,160.74,160.71,45.0]
[1723169495981,26.03,160.72,160.68,6.2235]
[1723169496283,26.03,160.71,160.68,6.2235]
[1723169497376,26.03,160.71,160.69,45.0]
[1723169499169,26.03,160.73,160.7,6.2227]
[1723169499363,26.03,160.73,160.69,60.5579]
[1723169499364,26.03,160.74,160.71,51.94692034]
[1723169499598,26.03,160.74,160.71,6.94692034]
[1723169499906,26.03,160.74,160.72,45.0]
[1723169501182,26.03,160.74,160.71,45.0]
[1723169501388,26.03,160.73,160.71,45.0]
[1723169501697,26.03,160.73,160.7,45.0]
[1723169502407,26.03,160.75,160.7,51.2227]
[1723169502981,12.09527055,160.78,160.7,51.2227]
[1723169502982,32.2501,160.77,160.71,0.72448817]
[1723169503175,26.03,160.78,160.71,26.75448817]
[1723169503381,26.03,160.79,160.74,6.2212]
[1723169503876,26.03,160.79,160.75,45.0]
[1723169505095,32.2493,160.79,160.75,45.0]
[1723169505590,6.49652358,160.81,160.75,45.0]
[1723169505797,257.0,160.84,160.76,0.72306844]
[1723169505992,6.2184,160.82,160.76,6.94306844]
[1723169506293,26.03,160.83,160.77,45.72278947]
[1723169506497,6.2196,160.78,160.77,45.0]
[1723169506798,32.2496,160.78,160.77,45.0]
[1723169506993,26.03,160.78,160.7,38.1874]
[1723169507184,26.03,160.76,160.7,38.1874]
[1723169507778,32.2505,160.76,160.71,6.2222]
[1723169508197,32.2501,160.77,160.71,6.2222]
[1723169508380,6.2201,160.77,160.72,45.0]
[1723169509301,26.03,160.78,160.72,60.554]
[1723169509598,26.03,160.79,160.73,6.2212]
[1723169509797,32.2494,160.79,160.74,45.0]
[1723169510303,15.5435,160.84,160.74,45.0]
[1723169510304,32.2498,160.78,160.74,45.0]
[1723169510476,32.2498,160.78,160.73,45.0]
[1723169511995,6.2201,160.77,160.73,45.0]
[1723169512299,32.2504,160.76,160.73,45.0]
[1723169512508,26.03,160.76,160.73,45.0]
[1723169512676,26.03,160.76,160.7,16.408]
[1723169513486,6.2208,160.75,160.7,16.408]
[1723169513670,6.2208,160.75,160.7,22.6306]
[1723169514100,6.2208,160.75,160.71,45.0]
[1723169517603,26.03,160.78,160.71,45.72436119]
[1723169517994,26.03,160.78,160.73,21.7754]
[1723169518179,32.2496,160.78,160.74,45.72372449]
[1723169518583,32.2496,160.78,160.74,45.0]
[1723169518984,26.03,160.76,160.74,45.0]
[1723169519195,26.03,160.76,160.73,45.0]
[1723169519397,32.2507,160.76,160.73,45.0]
[1723169519790,6.2208,160.75,160.73,45.0]
[1723169522917,26.03,160.76,160.73,45.0]
[1723169523700,32.2492,160.8,160.75,6.2207]
[1723169523900,32.2492,160.8,160.76,45.0]
[1723169524281,6.2185,160.81,160.76,51.2203]
[1723169525303,32.2485,160.81,160.76,51.2203]
[1723169527107,6.2185,160.81,160.76,51.2203]
[1723169527300,6.49581191,160.82,160.78,6.2196]
[1723169527485,6.2178,160.83,160.79,45.72233795]
[1723169527887,26.03,160.82,160.79,45.0]
[1723169528094,26.03,160.82,160.78,45.0]
[1723169528810,26.03,160.81,160.78,45.0]
[1723169528995,32.2481,160.82,160.78,45.0]
[1723169529399,26.03,160.81,160.78,45.0]
[1723169529901,26.03,160.83,160.78,51.2195]
[1723169530116,26.03,160.83,160.79,0.72278068]
[1723169530306,26.03,160.83,160.8,0.72231711]
[1723169530818,32.2469,160.85,160.8,6.94111711]
[1723169531002,32.2469,160.85,160.81,45.0]
[1723169531308,32.522406,160.88,160.82,0.72216217]
[1723169531511,32.522406,160.88,160.83,0.7213672]
[1723169531716,32.2462,160.87,160.82,6.218]
[1723169531900,32.2462,160.87,160.83,45.0]
[1723169532221,32.2472,160.85,160.81,45.0]
[1723169532511,32.2472,160.85,160.8,45.0]
[1723169532512,6.2178,160.83,160.8,45.0]
[1723169532698,26.03,160.85,160.8,6.2188]
[1723169533020,26.03,160.86,160.81,51.2184]
[1723169533219,26.03,160.86,160.82,6.2179]
[1723169533401,32.2458,160.88,160.83,45.72156622]
[1723169534198,26.03,160.88,160.83,51.2174]
[1723169534602,32.52165653,160.91,160.84,32.86488002]
[1723169534810,26.03,160.91,160.85,45.0]
[1723169535116,26.03,160.92,160.86,16.26121418]
[1723169535300,26.03,160.96,160.89,26.03]
[1723169535505,26.03,160.96,160.91,15.5366]
[1723169535711,26.03,160.96,160.92,45.7193426]
[1723169536045,26.03,160.96,160.92,45.0]
[1723169536490,26.03,160.95,160.92,45.0]
[1723169536988,26.03,160.94,160.92,45.0]
[1723169537213,26.03,160.95,160.92,45.0]
[1723169537587,6.2131,160.95,160.92,45.0]
[1723169537798,6.2131,160.95,160.91,45.0]
[1723169538319,32.2427,160.96,160.91,45.0]
[1723169538703,32.2427,160.96,160.91,51.2145]
[1723169538898,26.03,160.96,160.91,51.2145]
[1723169539410,13.079755,161.0,160.92,16.25414989]
[1723169539619,46.03,160.99,160.93,45.71894503]
[1723169539915,32.2418,160.99,160.93,45.0]
[1723169540105,32.2418,160.99,160.94,0.71887153]
[1723169540922,32.2418,160.99,160.94,6.93227153]
[1723169541121,32.2418,160.99,160.95,45.0]
[1723169541307,32.2418,160.99,160.96,0.71877435]
[1723169541893,13.079755,161.0,160.97,6.2122]
[1723169542093,32.51708665,161.01,160.98,45.71831658]
[1723169542094,26.03,161.01,160.98,45.71831658]
[1723169542299,32.2399,161.04,160.99,0.71821499]
[1723169542515,6.48586785,161.03,160.99,0.71821499]
[1723169542715,6.21,161.03,160.99,0.71821499]
[1723169542928,32.24,161.03,160.99,0.71821499]
[1723169543107,6.21,161.03,160.99,0.71821499]
[1723169543308,32.24,161.03,160.99,0.71821499]
[1723169543707,32.2396,161.04,160.99,6.92961499]
[1723169543909,32.2396,161.04,161.0,45.0]
[1723169544117,6.2096,161.04,161.0,45.0]
[1723169544302,6.2096,161.04,161.01,0.71743094]
[1723169544501,32.2396,161.04,161.01,0.71743094]
[1723169544935,32.2396,161.04,161.0,45.0]
[1723169545136,6.2096,161.04,161.0,45.0]
[1723169546310,32.2396,161.04,161.0,45.0]
[1723169546516,26.03,161.03,160.99,45.0]
[1723169547107,26.03,161.02,160.99,45.0]
[1723169547307,26.03,161.02,160.98,16.564]
[1723169547525,26.03,161.0,160.98,16.564]
[1723169547825,26.03,161.0,160.95,21.9169]
[1723169548045,26.03,160.97,160.94,15.4405]
[1723169548204,26.03,160.96,160.94,15.4405]
[1723169548799,26.03,160.97,160.94,15.4405]
[1723169549206,32.2423,160.98,160.94,15.4405]
[1723169549411,26.03,160.98,160.94,15.4405]
[1723169549622,26.03,160.99,160.94,15.4405]
[1723169549817,26.03,161.01,160.95,0.71865113]
[1723169550106,26.03,161.01,160.94,30.9733]
[1723169550330,26.03,161.01,160.94,15.4405]
[1723169550331,6.2127,160.96,160.94,15.4405]
[1723169550511,32.2423,160.97,160.94,15.4405]
[1723169551330,12.13472357,161.02,160.95,0.71912607]
[1723169551539,26.03,161.0,160.96,0.7185954]
[1723169551836,26.03,161.0,160.96,45.7185954]
[1723169552341,6.2109,161.01,160.96,51.9311954]
[1723169552837,6.2113,161.0,160.96,45.0]
[1723169553014,6.2113,161.0,160.95,45.0]
[1723169553341,6.2113,161.0,160.95,51.213]
[1723169554422,6.2108,161.01,160.96,6.93106673]
[1723169554728,18.34512357,161.02,160.97,51.2122]
[1723169554932,44.37512357,161.02,160.98,0.71814153]
[1723169555135,44.37512357,161.02,160.97,45.0]
[1723169556913,26.03,160.99,160.97,45.0]
[1723169557119,6.2123,160.97,160.94,15.4405]
[1723169557432,26.03,160.98,160.94,15.4405]
[1723169557637,32.2418,160.99,160.94,15.4405]
[1723169557821,32.2418,160.99,160.95,0.71886859]
[1723169558022,32.2418,160.99,160.94,15.4405]
[1723169558334,32.2418,160.99,160.95,45.0]
[1723169559939,32.2414,161.0,160.95,51.2129]
[1723169560142,32.2414,161.0,160.96,0.71843514]
[1723169560643,32.2414,161.0,160.95,51.2129]
[1723169561224,32.2417,160.99,160.95,45.0]
[1723169561932,6.2117,160.99,160.95,45.0]
[1723169562134,6.2117,160.99,160.95,45.71875401]
[1723169562322,26.03,160.99,160.95,51.93175401]
[1723169562530,26.03,160.99,160.95,45.0]
[1723169562531,32.2417,160.99,160.95,45.0]
[1723169562938,26.03,160.98,160.95,45.0]
[1723169563126,6.2117,160.99,160.95,45.0]
[1723169563127,32.2417,160.99,160.95,45.0]
[1723169563331,26.03,160.97,160.95,45.0]
[1723169563743,26.03,160.96,160.89,31.1364]
[1723169564053,26.03,160.93,160.89,37.3518]
[1723169564838,26.03,160.95,160.89,31.1364]
[1723169565046,26.03,160.96,160.92,6.2142]
[1723169565254,26.03,160.96,160.93,45.0]
[1723169565429,26.03,160.98,160.94,0.71934519]
[1723169565751,26.03,160.99,160.93,45.0]
[1723169565960,20.0,161.02,160.97,6.2121]
[1723169565961,26.03,161.01,160.97,6.2121]
[1723169566160,32.2407,161.02,160.98,45.71817195]
[1723169566451,32.52218095,161.03,160.99,6.92963057]
[1723169566754,6.49218095,161.03,161.0,45.0]
[1723169567126,6.49218095,161.03,160.99,45.0]
[1723169567357,6.49218095,161.03,161.0,0.71774849]
[1723169567358,26.03,161.03,161.0,0.71774849]
[1723169567649,32.24,161.04,161.0,0.71774849]
[1723169567861,26.03,161.05,161.0,0.71774849]
[1723169568035,32.2395,161.05,160.99,51.2115]
[1723169568537,6.2097,161.04,160.99,51.2115]
[1723169569475,26.03,161.06,161.01,15.5268]
[1723169569627,6.208,161.08,161.03,6.2098]
[1723169569929,32.2379,161.09,161.04,45.71672629]
[1723169570128,32.2379,161.09,161.05,0.7165261]
[1723169570540,32.2379,161.09,161.04,45.0]
[1723169570737,46.5721,161.04,160.88,32.2457]
[1723169570959,6.2231,160.69,160.56,0.8294675]
[1723169571171,6.12953199,160.69,160.56,0.8294675]
[1723169571454,6.2278,160.57,160.56,0.8294675]
[1723169572339,32.2578,160.57,160.56,0.8294675]
[1723169572548,78.2878,160.57,160.56,0.8294675]
[1723169573094,78.2878,160.57,160.24,0.8294675]
[1723169573095,6.2337,160.42,160.36,6.5502]
[1723169573366,52.06,160.41,160.3,15.7046]
[1723169573534,6.2364,160.35,160.3,15.7046]
[1723169573733,6.2364,160.35,160.24,20.8294675]
[1723169573734,41.16,160.33,160.24,20.8294675]
[1723169574056,6.2361,160.36,160.26,44.9195]
[1723169574250,15.5848,160.42,160.24,0.8294675]
[1723169574251,6.2365,160.35,160.27,6.2392]
[1723169574452,47.3956,160.37,160.26,20.0]
[1723169574654,41.16,160.4,160.24,16.77524807]
[1723169574655,41.16,160.4,160.3,20.0]
[1723169574860,47.3934,160.43,160.32,6.2373]
[1723169575041,6.2338,160.42,160.32,6.2373]
[1723169575362,41.16,160.37,160.3,6.2381]
[1723169575558,41.16,160.37,160.28,21.8365]
[1723169575931,41.16,160.33,160.24,7.0698675]
[1723169576460,6.2364,160.35,160.27,6.2392]
[1723169576841,47.3971,160.33,160.25,6.24]
[1723169577039,47.3971,160.33,160.24,0.8294675]
[1723169577237,41.16,160.33,160.25,6.2399]
[1723169578252,41.16,160.33,160.27,6.2392]
[1723169578442,41.16,160.36,160.29,6.2385]
[1723169578938,41.16,160.36,160.27,15.5983]
[1723169578939,47.3961,160.36,160.27,21.8376]
[1723169579141,6.2369,160.34,160.27,15.5983]
[1723169579339,41.16,160.33,160.24,8.3059746]
[1723169579559,41.16,160.33,160.24,0.8294675]
[1723169579765,41.16,160.3,160.24,0.8294675]
[1723169580071,41.16,160.3,160.24,7.0699675]
[1723169580769,15.5871,160.39,160.27,6.2394]
[1723169580770,41.16,160.33,160.27,6.2394]
[1723169581138,6.49632554,160.32,160.27,6.2394]
[1723169581654,6.49632554,160.32,160.28,6.2388]
[1723169582036,6.49632554,160.32,160.26,15.5994]
[1723169582270,6.2392,160.28,160.24,0.8294675]
[1723169582434,41.16,160.3,160.26,6.2396]
[1723169582766,41.16,160.29,160.24,16.4300675]
[1723169582938,41.16,160.29,160.24,0.8294675]
[1723169583137,6.2396,160.27,160.24,0.8294675]
[1723169583558,41.16,160.29,160.24,0.8294675]
[1723169584063,47.65632554,160.32,160.24,0.8294675]
[1723169584243,20.0,160.31,160.24,0.8294675]
[1723169585361,6.2386,160.3,160.24,0.8294675]
[1723169586072,6.2389,160.29,160.24,0.8294675]
[1723169586382,6.2395,160.27,160.24,0.8294675]
[1723169586562,20.0,160.31,160.24,0.8294675]
[1723169587155,6.2393,160.28,160.24,0.8294675]
[1723169588841,6.2385,160.3,160.24,0.8294675]
[1723169589474,12.73412554,160.32,160.24,0.8294675]
[1723169589639,12.73412554,160.32,160.27,6.2393]
[1723169589640,6.49632554,160.32,160.27,6.2393]
[1723169589845,6.49632554,160.32,160.28,6.2388]
[1723169590065,6.49632554,160.32,160.29,6.2386]
[1723169590266,6.49632554,160.32,160.27,6.2391]
[1723169590445,6.49632554,160.32,160.26,15.5992]
[1723169590446,12.73382554,160.32,160.26,15.5992]
[1723169590647,6.49632554,160.32,160.27,6.2393]
[1723169590865,6.49632554,160.32,160.26,15.5992]
[1723169591876,6.2391,160.28,160.24,0.8294675]
[1723169592050,41.16,160.32,160.24,0.8294675]
[1723169592254,20.0,160.31,160.24,0.8294675]
[1723169592656,6.239,160.29,160.24,0.8294675]
[1723169594455,20.0,160.31,160.24,0.8294675]
[1723169594785,6.2395,160.27,160.24,0.8294675]
[1723169596655,6.2398,160.26,160.24,0.8294675]
[1723169597056,6.2402,160.25,160.24,0.8294675]
[1723169597558,26.2402,160.25,160.24,0.8294675]
[1723169597772,6.2402,160.25,160.24,0.8294675]
[1723169597952,15.597,160.29,160.24,0.8294675]
[1723169597953,6.2397,160.27,160.24,0.8294675]
[1723169598177,6.2389,160.29,160.24,0.8294675]
[1723169598358,20.0,160.28,160.24,0.8294675]
[1723169598874,6.2394,160.27,160.24,0.8294675]
[1723169599456,6.2398,160.26,160.24,0.8294675]
[1723169600165,6.2401,160.26,160.24,0.8294675]
[1723169603863,6.2402,160.25,160.24,0.8294675]
[1723169605252,6.24,160.26,160.24,0.8294675]
[1723169605984,40.18446801,160.31,160.24,0.8294675]
[1723169606184,20.0,160.3,160.24,0.8294675]
[1723169606358,6.2394,160.27,160.24,0.8294675]
[1723169606668,33.7,160.29,160.24,0.8294675]
[1723169606878,6.2391,160.28,160.24,0.8294675]
[1723169607878,33.7,160.29,160.24,7.0698675]
[1723169608085,26.2386,160.3,160.24,7.0700675]
[1723169608290,6.2395,160.27,160.24,0.8294675]
[1723169609568,33.7,160.29,160.24,0.8294675]
[1723169609959,6.48446801,160.31,160.25,15.6005]
[1723169611089,6.48446801,160.31,160.27,6.2394]
[1723169611672,6.48446801,160.31,160.26,6.2397]
[1723169611991,40.18446801,160.31,160.26,6.2397]
[1723169612496,6.48446801,160.31,160.25,15.6005]
[1723169612673,6.48446801,160.31,160.3,6.2383]
[1723169613585,6.48446801,160.31,160.28,21.8362]
[1723169613792,46.42266801,160.31,160.24,22.6704675]
[1723169613979,6.2385,160.3,160.24,22.6706675]
[1723169614165,33.7,160.29,160.24,0.8294675]
[1723169615586,39.9387,160.29,160.24,0.8294675]
[1723169615763,33.7,160.29,160.24,0.8294675]
[1723169615965,33.7,160.25,160.24,0.8294675]
[1723169616178,26.46591004,160.25,160.24,0.8294675]
[1723169617171,32.70611004,160.25,160.24,0.8294675]
[1723169619492,6.49910208,160.28,160.24,0.8294675]
[1723169619493,6.2391,160.28,160.24,0.8294675]
[1723169619701,39.9391,160.28,160.24,0.8294675]
[1723169620079,39.9391,160.28,160.27,9.37373742]
[1723169620277,59.9391,160.28,160.24,0.8294675]
[1723169620703,6.2395,160.27,160.24,0.8294675]
[1723169621001,6.2402,160.25,160.24,0.8294675]
[1723169621480,33.7,160.26,160.24,0.8294675]
[1723169621481,39.9398,160.26,160.24,0.8294675]
[1723169622472,33.7,160.26,160.24,0.8294675]
[1723169623300,6.2395,160.27,160.24,0.8294675]
[1723169623796,39.9391,160.28,160.24,0.8294675]
[1723169624195,6.2396,160.27,160.24,0.8294675]
[1723169624396,6.2396,160.27,160.26,9.37367192]
[1723169625184,6.2396,160.27,160.26,8.87367192]
[1723169625386,6.2391,160.28,160.24,0.8294675]
[1723169625604,6.2395,160.27,160.24,0.8294675]
[1723169627775,6.2391,160.28,160.24,0.8294675]
[1723169628177,6.2396,160.27,160.24,0.8294675]
[1723169629298,40.19683136,160.3,160.24,0.8294675]
[1723169631009,6.2391,160.28,160.24,0.8294675]
[1723169632294,6.2398,160.27,160.24,0.8294675]
[1723169632610,40.19683136,160.3,160.24,0.8294675]
[1723169634009,6.2391,160.28,160.24,0.8294675]
[1723169635015,6.2395,160.27,160.24,0.8294675]
[1723169636199,40.19683136,160.3,160.24,0.8294675]
[1723169636200,6.2391,160.28,160.24,0.8294675]
[1723169636400,6.2398,160.26,160.24,0.8294675]
[1723169636599,33.7,160.28,160.24,0.8294675]
[1723169637118,6.2399,160.26,160.24,0.8294675]
[1723169637709,33.7,160.28,160.24,0.8294675]
[1723169637710,6.2402,160.25,160.24,0.8294675]
[1723169637907,6.2398,160.26,160.24,0.8294675]
[1723169638110,6.2402,160.25,160.24,0.8294675]
[1723169639319,6.2399,160.26,160.24,0.8294675]
[1723169639710,32.4499,160.26,160.24,0.8294675]
[1723169640292,6.49683136,160.3,160.24,0.8294675]
[1723169640512,32.70683136,160.3,160.24,0.8294675]
[1723169640814,26.21,160.29,160.24,0.8294675]
[1723169641023,32.4487,160.29,160.24,0.8294675]
[1723169641402,32.4487,160.29,160.24,7.0700675]
[1723169642317,6.49683136,160.3,160.24,0.8294675]
[1723169642318,6.2396,160.27,160.24,0.8294675]
[1723169642513,32.4491,160.28,160.24,0.8294675]
[1723169643045,6.2402,160.25,160.24,0.8294675]
[1723169643225,26.21,160.25,160.24,0.8294675]
[1723169643524,32.4496,160.27,160.24,0.8294675]
[1723169643702,6.2396,160.27,160.24,0.8294675]
[1723169643908,32.4496,160.27,160.24,0.8294675]
[1723169644429,6.49683136,160.3,160.24,0.8294675]
[1723169644430,26.21,160.29,160.24,0.8294675]
[1723169644610,26.21,160.29,160.24,7.0696675]
[1723169645003,32.4487,160.29,160.24,7.0696675]
[1723169645718,6.239,160.28,160.24,0.8294675]
[1723169646310,26.21,160.29,160.24,7.0700675]
[1723169646897,32.4487,160.29,160.24,7.0700675]
[1723169647218,32.4487,160.29,160.24,0.8294675]
[1723169648011,32.4487,160.29,160.24,7.0699675]
[1723169649312,32.4487,160.29,160.24,0.8294675]
[1723169649507,26.21,160.27,160.24,0.8294675]
[1723169649825,6.2398,160.26,160.24,0.8294675]